fUST/lending_fUST_20240518
["ID","MTS","AMOUNT","RATE_DAILY","PERIOD"]
[327359583,1716017449912,-151.0,0.00016712,2]
[327359584,1716017449922,-500.0,0.00016712,2]
[327359585,1716017449931,-295.64392202,0.00016712,2]
[327359586,1716017449941,-500.0,0.00016712,2]
[327359587,1716017449951,-576.27,0.00016712,2]
[327359588,1716017449961,-500.0,0.00016712,2]
[327359589,1716017449970,-500.0,0.00016712,2]
[327359590,1716017449979,-1061.9,0.00016712,2]
[327359591,1716017449988,-817.475175,0.00016712,2]
[327359592,1716017449997,-500.0,0.00016712,2]
[327359593,1716017450008,-817.475175,0.00016712,2]
[327359594,1716017450019,-356.00654978,0.00016712,2]
[327359595,1716017450030,-500.0,0.00016712,2]
[327359596,1716017450039,-500.0,0.00016712,2]
[327359597,1716017450049,-500.0,0.00016712,2]
[327359598,1716017450060,-500.0,0.00016712,2]
[327359599,1716017450069,-2463.57,0.00016712,2]
[327359600,1716017450078,-500.0,0.00016712,2]
[327359601,1716017450087,-500.0,0.00016712,2]
[327359602,1716017450097,-3548.83,0.00016712,2]
[327359603,1716017450106,-636.41502879,0.00016712,2]
[327359604,1716017450116,-270.41,0.00016712,2]
[327359605,1716017450125,-151.0,0.00016712,2]
[327359606,1716017450136,-934.55,0.00016712,2]
[327359607,1716017450145,-192.42,0.00016712,2]
[327359608,1716017450156,-1925.6,0.00016712,2]
[327359609,1716017450166,-500.0,0.00016712,2]
[327359610,1716017450176,-4540.69,0.00016712,2]
[327359611,1716017450185,-525.88,0.00016712,2]
[327359612,1716017450194,-500.0,0.00016712,2]
[327359613,1716017450203,-500.0,0.00016712,2]
[327359614,1716017450213,-500.0,0.00016712,2]
[327359615,1716017450222,-3284.2,0.00016712,2]
[327359616,1716017450232,-905.75,0.00016712,2]
[327359617,1716017450243,-500.0,0.00016712,2]
[327359618,1716017450251,-500.0,0.00016712,2]
[327359619,1716017450261,-4713.77,0.00016712,2]
[327359620,1716017450270,-500.0,0.00016712,2]
[327359621,1716017450281,-500.0,0.00016712,2]
[327359622,1716017450291,-333.819638,0.00016712,2]
[327359623,1716017450300,-500.0,0.00016712,2]
[327359624,1716017450309,-333.819638,0.00016712,2]
[327359625,1716017450318,-500.0,0.00016712,2]
[327359626,1716017450328,-500.0,0.00016712,2]
[327359627,1716017450337,-500.0,0.00016712,2]
[327359628,1716017450347,-25178.98,0.00016712,2]
[327359629,1716017450356,-512.07,0.00016712,2]
[327359630,1716017450365,-500.0,0.00016712,2]
[327359631,1716017450374,-1949.54,0.00016712,2]
[327359632,1716017450384,-366.512236,0.00016712,2]
[327359633,1716017450393,-366.512236,0.00016712,2]
[327359634,1716017450402,-574.578525,0.00016712,2]
[327359635,1716017450412,-500.0,0.00016712,2]
[327359636,1716017450421,-732.46,0.00016712,2]
[327359637,1716017450430,-186.68913045,0.00016712,2]
[327359638,1716017450439,-500.0,0.00016712,2]
[327359639,1716017450448,-161.95169,0.00016712,2]
[327359640,1716017450458,-913.46,0.00016712,2]
[327359641,1716017450467,-161.95169,0.00016712,2]
[327359642,1716017450476,-151.0,0.00016712,2]
[327359643,1716017450485,-151.0,0.00016712,2]
[327359644,1716017450494,-198.5,0.00016912,2]
[327359645,1716017450503,-500.0,0.00016986,2]
[327359646,1716017450512,-500.0,0.00016986,2]
[327359647,1716017450521,-500.0,0.00016986,2]
[327359648,1716017450530,-500.0,0.00016986,2]
[327359649,1716017450539,-422.68,0.00016986,2]
[327359650,1716017450548,-151.0,0.00016986,2]
[327359651,1716017450558,-500.0,0.00016986,2]
[327359652,1716017450567,-500.0,0.00016986,2]
[327359653,1716017450576,-500.0,0.00016986,2]
[327359654,1716017450587,-500.0,0.00016986,2]
[327359655,1716017450596,-151.0,0.00016986,2]
[327359656,1716017450721,-500.0,0.00016986,2]
[327359657,1716017450732,-163.07,0.00016986,2]
[327359658,1716017450742,-500.0,0.00016986,2]
[327359659,1716017450751,-500.0,0.00016986,2]
[327359660,1716017450760,-1061.9,0.00016986,2]
[327359661,1716017450769,-817.475175,0.00016986,2]
[327359662,1716017450780,-500.0,0.00016986,2]
[327359663,1716017450789,-817.475175,0.00016986,2]
[327359664,1716017450799,-500.0,0.00016986,2]
[327359665,1716017450808,-500.0,0.00016986,2]
[327359666,1716017450817,-215.85483913,0.00016986,2]
[327359667,1716017450827,-500.0,0.00016986,2]
[327359668,1716017450836,-2463.57,0.00016986,2]
[327359669,1716017450845,-500.0,0.00016986,2]
[327359670,1716017450854,-595.54,0.00016986,2]
[327359671,1716017450863,-3548.83,0.00016986,2]
[327359672,1716017450872,-151.0,0.00016986,2]
[327359673,1716017450881,-934.55,0.00016986,2]
[327359674,1716017450890,-1925.6,0.00016986,2]
[327359675,1716017450899,-500.0,0.00016986,2]
[327359676,1716017450908,-4540.69,0.00016986,2]
[327359677,1716017450916,-525.88,0.00016986,2]
[327359678,1716017450926,-500.0,0.00016986,2]
[327359679,1716017450935,-500.0,0.00016986,2]
[327359680,1716017450943,-626.0504471,0.00016986,2]
[327359681,1716017450952,-3284.2,0.00016986,2]
[327359682,1716017450963,-905.75,0.00016986,2]
[327359683,1716017450972,-500.0,0.00016986,2]
[327359684,1716017450981,-500.0,0.00016986,2]
[327359685,1716017450991,-4713.77,0.00016986,2]
[327359686,1716017451000,-500.0,0.00016986,2]
[327359687,1716017451009,-500.0,0.00016986,2]
[327359688,1716017451019,-333.819638,0.00016986,2]
[327359689,1716017451028,-500.0,0.00016986,2]
[327359690,1716017451037,-333.819638,0.00016986,2]
[327359691,1716017451046,-500.0,0.00016986,2]
[327359692,1716017451055,-500.0,0.00016986,2]
[327359693,1716017451065,-500.0,0.00016986,2]
[327359694,1716017451074,-25178.98,0.00016986,2]
[327359695,1716017451084,-512.07,0.00016986,2]
[327359696,1716017451093,-1949.54,0.00016986,2]
[327359697,1716017451102,-366.512236,0.00016986,2]
[327359698,1716017451111,-366.512236,0.00016986,2]
[327359699,1716017451120,-500.0,0.00016986,2]
[327359700,1716017451130,-732.46,0.00016986,2]
[327359701,1716017451139,-240.80177801,0.00016986,2]
[327359702,1716017451148,-161.95169,0.00016986,2]
[327359703,1716017451157,-913.46,0.00016986,2]
[327359704,1716017451166,-161.95169,0.00016986,2]
[327359705,1716017451175,-417.06273246,0.00017028,2]
[327359706,1716017451185,-295.60222732,0.00017087,2]
[327359707,1716017451194,-4222.10020806,0.00017092,2]
[327359708,1716017451203,-153.0,0.00017123,2]
[327359709,1716017451214,-153.0,0.00017123,2]
[327359710,1716017451223,-153.0,0.00017123,2]
[327359711,1716017451232,-153.0,0.00017123,2]
[327359712,1716017451241,-198.5,0.0001716,2]
[327359713,1716017451252,-9558.14823448,0.00017258,2]
[327359714,1716017451262,-9552.34116077,0.00017258,2]
[327359715,1716017451271,-500.0,0.0001726,2]
[327359716,1716017451280,-500.0,0.0001726,2]
[327359717,1716017451289,-500.0,0.0001726,2]
[327359718,1716017451299,-500.0,0.0001726,2]
[327359719,1716017451308,-151.0,0.0001726,2]
[327359720,1716017451317,-544.74846422,0.0001726,2]
[327359721,1716017451326,-500.0,0.0001726,2]
[327359722,1716017451335,-500.0,0.0001726,2]
[327359723,1716017451345,-500.0,0.0001726,2]
[327359724,1716017451354,-221.031457,0.0001726,2]
[327359725,1716017451364,-500.0,0.0001726,2]
[327359726,1716017451373,-244.43,0.0001726,2]
[327359727,1716017451383,-500.0,0.0001726,2]
[327359728,1716017451392,-1061.9,0.0001726,2]
[327359729,1716017451401,-817.475175,0.0001726,2]
[327359730,1716017451411,-500.0,0.0001726,2]
[327359731,1716017451420,-817.475175,0.0001726,2]
[327359732,1716017451430,-216.6,0.0001726,2]
[327359733,1716017451439,-500.0,0.0001726,2]
[327359734,1716017451449,-500.0,0.0001726,2]
[327359735,1716017451460,-2463.57,0.0001726,2]
[327359736,1716017451469,-500.0,0.0001726,2]
[327359737,1716017451478,-3548.83,0.0001726,2]
[327359738,1716017451488,-161.802246,0.0001726,2]
[327359739,1716017451497,-934.55,0.0001726,2]
[327359740,1716017451506,-1925.6,0.0001726,2]
[327359741,1716017451516,-500.0,0.0001726,2]
[327359742,1716017451526,-4540.69,0.0001726,2]
[327359743,1716017451535,-525.88,0.0001726,2]
[327359744,1716017451545,-500.0,0.0001726,2]
[327359745,1716017451554,-500.0,0.0001726,2]
[327359746,1716017451563,-3284.2,0.0001726,2]
[327359747,1716017451572,-905.75,0.0001726,2]
[327359748,1716017451581,-191.56040478,0.0001726,2]
[327359749,1716017451590,-500.0,0.0001726,2]
[327359750,1716017451600,-4713.77,0.0001726,2]
[327359751,1716017451609,-500.0,0.0001726,2]
[327359752,1716017451618,-500.08591447,0.0001726,2]
[327359753,1716017451628,-333.819638,0.0001726,2]
[327359754,1716017451637,-333.819638,0.0001726,2]
[327359755,1716017451646,-500.0,0.0001726,2]
[327359756,1716017451655,-333.819638,0.0001726,2]
[327359757,1716017451664,-333.819638,0.0001726,2]
[327359758,1716017451673,-500.0,0.0001726,2]
[327359759,1716017451683,-500.0,0.0001726,2]
[327359760,1716017451696,-170.58619834,0.0001726,2]
[327359761,1716017451705,-25178.98,0.0001726,2]
[327359762,1716017451716,-512.07,0.0001726,2]
[327359763,1716017451725,-1949.54,0.0001726,2]
[327359764,1716017451736,-366.512236,0.0001726,2]
[327359765,1716017451745,-366.512236,0.0001726,2]
[327359766,1716017451754,-366.512236,0.0001726,2]
[327359767,1716017451763,-366.512236,0.0001726,2]
[327359768,1716017451773,-500.0,0.0001726,2]
[327359769,1716017451783,-732.46,0.0001726,2]
[327359770,1716017451792,-161.95169,0.0001726,2]
[327359771,1716017451801,-161.95169,0.0001726,2]
[327359772,1716017451811,-161.95169,0.0001726,2]
[327359773,1716017451820,-913.46,0.0001726,2]
[327359774,1716017451829,-161.95169,0.0001726,2]
[327359775,1716017451840,-198.5,0.00017409,2]
[327359776,1716017451849,-204.3360345,0.00017475,2]
[327359777,1716017451859,-204.3360345,0.00017475,2]
[327359778,1716017451867,-204.3360345,0.00017475,2]
[327359779,1716017451877,-204.3360345,0.00017475,2]
[327359780,1716017451886,-204.3360345,0.00017475,2]
[327359781,1716017451896,-204.3360345,0.00017475,2]
[327359782,1716017451904,-204.3360345,0.00017475,2]
[327359783,1716017451914,-204.3360345,0.00017475,2]
[327359784,1716017451923,-204.3360345,0.00017475,2]
[327359785,1716017451932,-204.3360345,0.00017475,2]
[327359786,1716017451941,-204.3360345,0.00017476,2]
[327359787,1716017451950,-500.0,0.00017534,2]
[327359788,1716017451960,-492.26151742,0.00017534,2]
[327359789,1716017451970,-500.0,0.00017534,2]
[327359790,1716017451980,-422.61,0.00017534,2]
[327359791,1716017451989,-151.0,0.00017534,2]
[327359792,1716017451998,-500.0,0.00017534,2]
[327359793,1716017452007,-500.0,0.00017534,2]
[327359794,1716017452016,-386.51836466,0.00017534,2]
[327359795,1716017452025,-500.0,0.00017534,2]
[327359796,1716017452034,-500.0,0.00017534,2]
[327359797,1716017452043,-1061.9,0.00017534,2]
[327359798,1716017452052,-817.475175,0.00017534,2]
[327359799,1716017452061,-500.0,0.00017534,2]
[327359800,1716017452071,-817.475175,0.00017534,2]
[327359801,1716017452080,-426.79,0.00017534,2]
[327359802,1716017452089,-500.0,0.00017534,2]
[327359803,1716017452098,-2463.57,0.00017534,2]
[327359804,1716017452107,-500.0,0.00017534,2]
[327359805,1716017452117,-3548.83,0.00017534,2]
[327359806,1716017452127,-934.55,0.00017534,2]
[327359807,1716017452138,-1925.6,0.00017534,2]
[327359808,1716017452147,-193.61873784,0.00017534,2]
[327359809,1716017452156,-4540.69,0.00017534,2]
[327359810,1716017452165,-525.88,0.00017534,2]
[327359811,1716017452175,-542.62568776,0.00017534,2]
[327359812,1716017452184,-500.0,0.00017534,2]
[327359813,1716017452193,-3284.2,0.00017534,2]
[327359814,1716017452202,-905.75,0.00017534,2]
[327359815,1716017452212,-500.0,0.00017534,2]
[327359816,1716017452221,-4713.77,0.00017534,2]
[327359817,1716017452231,-500.0,0.00017534,2]
[327359818,1716017452240,-333.819638,0.00017534,2]
[327359819,1716017452249,-500.0,0.00017534,2]
[327359820,1716017452258,-333.819638,0.00017534,2]
[327359821,1716017452267,-500.0,0.00017534,2]
[327359822,1716017452277,-500.0,0.00017534,2]
[327359823,1716017452286,-25178.98,0.00017534,2]
[327359824,1716017452295,-512.07,0.00017534,2]
[327359825,1716017452304,-1949.54,0.00017534,2]
[327359826,1716017452314,-366.512236,0.00017534,2]
[327359827,1716017452323,-366.512236,0.00017534,2]
[327359828,1716017452333,-500.0,0.00017534,2]
[327359829,1716017452342,-732.46,0.00017534,2]
[327359830,1716017452351,-161.95169,0.00017534,2]
[327359831,1716017452360,-913.46,0.00017534,2]
[327359832,1716017452369,-161.95169,0.00017534,2]
[327359833,1716017452378,-246.4024348,0.00017534,2]
[327359834,1716017452388,-198.5,0.00017657,2]
[327359835,1716017452397,-16101.51162612,0.000178,2]
[327359836,1716017452407,-817.475175,0.000178,2]
[327359837,1716017452416,-817.475175,0.000178,2]
[327359838,1716017452426,-21244.76748352,0.00017808,3]
[327359839,1716017452435,-158.16899251,0.00017808,2]
[327359840,1716017452444,-500.0,0.00017808,2]
[327359841,1716017452453,-151.0,0.00017808,2]
[327359842,1716017452464,-151.0,0.00017808,2]
[327359843,1716017452473,-500.0,0.00017808,2]
[327359844,1716017452482,-500.0,0.00017808,2]
[327359845,1716017452491,-500.0,0.00017808,2]
[327359846,1716017452501,-500.0,0.00017808,2]
[327359847,1716017452510,-1061.9,0.00017808,2]
[327359848,1716017452519,-500.0,0.00017808,2]
[327359849,1716017452528,-817.475175,0.00017808,2]
[327359850,1716017452537,-817.475175,0.00017808,2]
[327359851,1716017452546,-500.0,0.00017808,2]
[327359852,1716017452556,-2463.57,0.00017808,2]
[327359853,1716017452565,-500.0,0.00017808,2]
[327359854,1716017452574,-3548.83,0.00017808,2]
[327359855,1716017452584,-934.55,0.00017808,2]
[327359856,1716017452593,-1925.6,0.00017808,2]
[327359857,1716017452602,-4540.69,0.00017808,2]
[327359858,1716017452611,-525.88,0.00017808,2]
[327359859,1716017452620,-500.0,0.00017808,2]
[327359860,1716017452630,-3284.2,0.00017808,2]
[327359861,1716017452639,-905.75,0.00017808,2]
[327359862,1716017452649,-500.0,0.00017808,2]
[327359863,1716017452658,-4713.77,0.00017808,2]
[327359864,1716017452667,-500.0,0.00017808,2]
[327359865,1716017452677,-333.819638,0.00017808,2]
[327359866,1716017452687,-248.88059002,0.00017808,2]
[327359867,1716017452700,-333.819638,0.00017808,2]
[327359868,1716017452710,-500.0,0.00017808,2]
[327359869,1716017452719,-539.53890964,0.00017808,2]
[327359870,1716017452730,-25178.98,0.00017808,2]
[327359871,1716017452739,-512.07,0.00017808,2]
[327359872,1716017452749,-1949.54,0.00017808,2]
[327359873,1716017452758,-366.512236,0.00017808,2]
[327359874,1716017452767,-366.512236,0.00017808,2]
[327359875,1716017452779,-500.0,0.00017808,2]
[327359876,1716017452789,-732.46,0.00017808,2]
[327359877,1716017452798,-161.95169,0.00017808,2]
[327359878,1716017452807,-913.46,0.00017808,2]
[327359879,1716017452816,-161.95169,0.00017808,2]
[327359880,1716017452825,-10448.86120355,0.00017898,2]
[327359881,1716017452835,-198.5,0.00017906,2]
[327359882,1716017452844,-565.97584437,0.00018,2]
[327359883,1716017452853,-189.86799103,0.00018,2]
[327359884,1716017452862,-895.80593484,0.00018,2]
[327359885,1716017452872,-2161.83024524,0.00018,2]
[327359886,1716017452881,-620.03433115,0.00018064,2]
[327359887,1716017452890,-500.0,0.00018082,2]
[327359888,1716017452899,-151.0,0.00018082,2]
[327359889,1716017452908,-500.0,0.00018082,2]
[327359890,1716017452917,-500.0,0.00018082,2]
[327359891,1716017452926,-500.0,0.00018082,2]
[327359892,1716017452935,-198.79,0.00018082,2]
[327359893,1716017452944,-1061.9,0.00018082,2]
[327359894,1716017452953,-500.0,0.00018082,2]
[327359895,1716017452964,-817.475175,0.00018082,2]
[327359896,1716017452972,-817.47516905,0.00018082,2]
[327359897,1716017452982,-500.0,0.00018082,2]
[327359898,1716017452991,-2463.57,0.00018082,2]
[327359899,1716017453000,-500.0,0.00018082,2]
[327359900,1716017453009,-3548.83,0.00018082,2]
[327359901,1716017453018,-934.55,0.00018082,2]
[327359902,1716017453027,-1925.6,0.00018082,2]
[327359903,1716017453036,-4540.69,0.00018082,2]
[327359904,1716017453044,-525.88,0.00018082,2]
[327359905,1716017453054,-500.0,0.00018082,2]
[327359906,1716017453063,-3284.2,0.00018082,2]
[327359907,1716017453071,-905.75,0.00018082,2]
[327359908,1716017453081,-580.75308461,0.00018082,2]
[327359909,1716017453090,-4713.77,0.00018082,2]
[327359910,1716017453099,-500.0,0.00018082,2]
[327359911,1716017453108,-333.819638,0.00018082,2]
[327359912,1716017453117,-333.819638,0.00018082,2]
[327359913,1716017453126,-500.0,0.00018082,2]
[327359914,1716017453135,-25178.98,0.00018082,2]
[327359915,1716017453144,-512.07,0.00018082,2]
[327359916,1716017453153,-1949.54,0.00018082,2]
[327359917,1716017453162,-366.512236,0.00018082,2]
[327359918,1716017453171,-366.512236,0.00018082,2]
[327359919,1716017453180,-483.33663518,0.00018082,2]
[327359920,1716017453190,-732.46,0.00018082,2]
[327359921,1716017453198,-161.95169,0.00018082,2]
[327359922,1716017453207,-913.46,0.00018082,2]
[327359923,1716017453217,-153.0,0.00018082,2]
[327359924,1716017453227,-153.0,0.00018082,2]
[327359925,1716017453236,-153.0,0.00018082,2]
[327359926,1716017453246,-153.0,0.00018082,2]
[327359927,1716017453255,-153.0,0.00018082,2]
[327359928,1716017453264,-153.0,0.00018082,2]
[327359929,1716017453274,-198.5,0.00018154,2]
[327359930,1716017453283,-742.92490313,0.000182,2]
[327359931,1716017453292,-500.0,0.00018356,2]
[327359932,1716017453398,-151.0,0.00018356,2]
[327359933,1716017453408,-428.77,0.00018356,2]
[327359934,1716017453418,-500.0,0.00018356,2]
[327359935,1716017453427,-314.70682823,0.00018356,2]
[327359936,1716017453436,-1061.9,0.00018356,2]
[327359937,1716017453446,-500.0,0.00018356,2]
[327359938,1716017453456,-500.0,0.00018356,2]
[327359939,1716017453466,-2463.57,0.00018356,2]
[327359940,1716017453476,-500.0,0.00018356,2]
[327359941,1716017453485,-3548.83,0.00018356,2]
[327359942,1716017453495,-934.55,0.00018356,2]
[327359943,1716017453504,-1925.6,0.00018356,2]
[327359944,1716017453514,-4540.69,0.00018356,2]
[327359945,1716017453523,-525.88,0.00018356,2]
[327359946,1716017453532,-500.0,0.00018356,2]
[327359947,1716017453542,-3284.2,0.00018356,2]
[327359948,1716017453551,-905.75,0.00018356,2]
[327359949,1716017453560,-4713.77,0.00018356,2]
[327359950,1716017453569,-500.0,0.00018356,2]
[327359951,1716017453578,-333.819638,0.00018356,2]
[327359952,1716017453588,-333.819638,0.00018356,2]
[327359953,1716017453598,-500.0,0.00018356,2]
[327359954,1716017453607,-25178.98,0.00018356,2]
[327359955,1716017453616,-512.07,0.00018356,2]
[327359956,1716017453625,-1949.54,0.00018356,2]
[327359957,1716017453634,-366.512236,0.00018356,2]
[327359958,1716017453643,-366.512236,0.00018356,2]
[327359959,1716017453653,-732.46,0.00018356,2]
[327359960,1716017453662,-161.95169,0.00018356,2]
[327359961,1716017453671,-204.3666626,0.00018356,2]
[327359962,1716017453681,-198.5,0.00018403,2]
[327359963,1716017453693,-1237.48942899,0.000185,2]
[327359964,1716017453703,-590.0,0.000185,2]
[327359965,1716017453712,-314.82186503,0.0001863,2]
[327359966,1716017453721,-500.0,0.0001863,2]
[327359967,1716017453731,-1061.9,0.0001863,2]
[327359968,1716017453740,-500.0,0.0001863,2]
[327359969,1716017453750,-500.0,0.0001863,2]
[327359970,1716017453759,-2463.57,0.0001863,2]
[327359971,1716017453767,-500.0,0.0001863,2]
[327359972,1716017453780,-3548.83,0.0001863,2]
[327359973,1716017453791,-934.55,0.0001863,2]
[327359974,1716017453800,-1925.6,0.0001863,2]
[327359975,1716017453809,-4540.69,0.0001863,2]
[327359976,1716017453819,-525.88,0.0001863,2]
[327359977,1716017453828,-500.0,0.0001863,2]
[327359978,1716017453837,-3284.2,0.0001863,2]
[327359979,1716017453846,-905.75,0.0001863,2]
[327359980,1716017453855,-4713.77,0.0001863,2]
[327359981,1716017453865,-500.0,0.0001863,2]
[327359982,1716017453875,-333.819638,0.0001863,2]
[327359983,1716017453884,-333.819643,0.0001863,2]
[327359984,1716017453894,-500.0,0.0001863,2]
[327359985,1716017453903,-25178.98,0.0001863,2]
[327359986,1716017453912,-512.07,0.0001863,2]
[327359987,1716017453922,-1949.54,0.0001863,2]
[327359988,1716017453932,-366.512236,0.0001863,2]
[327359989,1716017453941,-366.512228,0.0001863,2]
[327359990,1716017453952,-732.46,0.0001863,2]
[327359991,1716017453963,-161.95169,0.0001863,2]
[327359992,1716017453972,-198.5,0.00018651,2]
[327359993,1716017453982,-305.31647888,0.0001875,2]
[327359994,1716017453991,-5202.24016042,0.000189,2]
[327359995,1716017454000,-500.0,0.00018904,2]
[327359996,1716017454009,-1061.9,0.00018904,2]
[327359997,1716017454019,-500.0,0.00018904,2]
[327359998,1716017454028,-500.0,0.00018904,2]
[327359999,1716017454037,-2463.57,0.00018904,2]
[327360000,1716017454046,-500.0,0.00018904,2]
[327360001,1716017454055,-3548.83,0.00018904,2]
[327360002,1716017454064,-934.55,0.00018904,2]
[327360003,1716017454073,-1925.6,0.00018904,2]
[327360004,1716017454083,-4540.69,0.00018904,2]
[327360005,1716017454092,-525.88,0.00018904,2]
[327360006,1716017454101,-500.0,0.00018904,2]
[327360007,1716017454111,-3284.2,0.00018904,2]
[327360008,1716017454120,-905.75,0.00018904,2]
[327360009,1716017454129,-4713.77,0.00018904,2]
[327360010,1716017454139,-500.0,0.00018904,2]
[327360011,1716017454148,-500.0,0.00018904,2]
[327360012,1716017454157,-25178.98,0.00018904,2]
[327360013,1716017454166,-512.07,0.00018904,2]
[327360014,1716017454176,-1949.54,0.00018904,2]
[327360015,1716017454186,-732.46,0.00018904,2]
[327360016,1716017454195,-620.00171656,0.00018967,2]
[327360017,1716017454205,-155.13515918,0.00019,2]
[327360018,1716017454215,-154.92199407,0.00019,2]
[327360019,1716017454224,-2686.5429633,0.00019,2]
[327360020,1716017454234,-811.58852319,0.00019,2]
[327360021,1716017454243,-184.49080934,0.000191,2]
[327360022,1716017454252,-204.3360345,0.00019103,2]
[327360023,1716017454261,-204.3360345,0.00019103,2]
[327360024,1716017454271,-204.3360345,0.00019103,2]
[327360025,1716017454280,-204.3666626,0.00019103,2]
[327360026,1716017454290,-204.3360345,0.00019103,2]
[327360027,1716017454299,-408.4701384,0.00019103,2]
[327360028,1716017454308,-408.6299349,0.00019114,2]
[327360029,1716017454317,-204.3360345,0.00019114,2]
[327360030,1716017454327,-500.0,0.00019178,2]
[327360031,1716017454336,-500.0,0.00019178,2]
[327360032,1716017454345,-500.0,0.00019178,2]
[327360033,1716017454354,-500.0,0.00019178,2]
[327360034,1716017454363,-500.0,0.00019178,2]
[327360035,1716017454373,-250.0,0.00019178,2]
[327360036,1716017454382,-500.0,0.00019178,2]
[327360037,1716017454391,-500.0,0.00019178,2]
[327360038,1716017454401,-500.0,0.00019178,2]
[327360039,1716017454410,-500.0,0.00019178,2]
[327360040,1716017454420,-500.0,0.00019178,2]
[327360041,1716017454429,-500.0,0.00019178,2]
[327360042,1716017454438,-500.0,0.00019178,2]
[327360043,1716017454448,-500.0,0.00019178,2]
[327360044,1716017454457,-500.0,0.00019178,2]
[327360045,1716017454467,-500.0,0.00019178,2]
[327360046,1716017454477,-500.0,0.00019178,2]
[327360047,1716017454487,-500.0,0.00019178,2]
[327360048,1716017454496,-500.0,0.00019178,2]
[327360049,1716017454505,-500.0,0.00019178,2]
[327360050,1716017454514,-500.0,0.00019178,2]
[327360051,1716017454524,-500.0,0.00019178,2]
[327360052,1716017454534,-500.0,0.00019178,2]
[327360053,1716017454543,-200.0,0.00019178,2]
[327360054,1716017454552,-500.0,0.00019178,2]
[327360055,1716017454561,-351.11394414,0.00019178,2]
[327360056,1716017454571,-500.0,0.00019178,2]
[327360057,1716017454580,-365.60401735,0.00019178,2]
[327360058,1716017454589,-500.0,0.00019178,2]
[327360059,1716017454599,-500.0,0.00019178,2]
[327360060,1716017454608,-500.0,0.00019178,2]
[327360061,1716017454617,-291.73445688,0.00019178,2]
[327360062,1716017454628,-284.40229474,0.00019178,2]
[327360063,1716017454637,-422.96516506,0.00019178,2]
[327360064,1716017454646,-500.0,0.00019178,2]
[327360065,1716017454656,-500.0,0.00019178,2]
[327360066,1716017454665,-500.0,0.00019178,2]
[327360067,1716017454674,-500.0,0.00019178,2]
[327360068,1716017454684,-500.0,0.00019178,2]
[327360069,1716017454698,-500.0,0.00019178,2]
[327360070,1716017454708,-210.12650565,0.00019178,2]
[327360071,1716017454719,-499.99999999,0.00019178,2]
[327360072,1716017454729,-154.98063443,0.00019178,2]
[327360073,1716017454739,-161.05702296,0.00019178,2]
[327360074,1716017454748,-500.0,0.00019178,2]
[327360075,1716017454758,-500.0,0.00019178,2]
[327360076,1716017454767,-500.0,0.00019178,2]
[327360077,1716017454779,-500.0,0.00019178,2]
[327360078,1716017454788,-500.0,0.00019178,2]
[327360079,1716017454797,-561.44900755,0.00019178,2]
[327360080,1716017454806,-500.0,0.00019178,2]
[327360081,1716017454815,-266.10492929,0.00019178,2]
[327360082,1716017454824,-500.0,0.00019178,2]